bitfinex-derivatives/quotes_ETHF0:USTF0_20250107
["timestamp","ask_amount","ask_price","bid_price","bid_amount"]
[1736288154008,0.29611,3378.0,3377.7,0.29613]
[1736288154317,3.2078,3378.3,3377.6,2.39055906]
[1736288154520,0.29612,3377.8,3377.5,0.29614]
[1736288154818,0.29614,3377.6,3377.3,14.67265906]
[1736288155011,0.29614,3377.6,3377.3,14.96881906]
[1736288155514,0.29616,3377.4,3377.3,3.2078]
[1736288155815,3.2078,3377.5,3377.0,2.39055906]
[1736288156022,0.29616,3377.4,3377.1,0.29618]
[1736288156325,3.2078,3377.5,3377.0,2.39055906]
[1736288156515,3.50395,3377.5,3377.2,0.29617]
[1736288156826,0.29616,3377.4,3377.1,0.29618]
[1736288157120,3.2078,3377.5,3377.0,2.39055906]
[1736288157319,3.2078,3377.5,3377.0,2.68674906]
[1736288157515,3.2078,3377.5,3376.7,11.83655906]
[1736288157719,0.29618,3377.2,3376.7,11.83655906]
[1736288157914,3.2078,3377.5,3376.7,11.83655906]
[1736288158119,3.2078,3377.5,3376.8,0.2962]
[1736288158321,0.29616,3377.4,3376.9,0.29619]
[1736288158523,0.29618,3377.1,3376.7,11.83655906]
[1736288158917,3.2078,3377.5,3376.7,11.83655906]
[1736288159115,0.2962,3377.0,3376.7,12.13276906]
[1736288159511,0.2962,3376.9,3376.7,2.68676906]
[1736288159722,0.29619,3377.0,3376.7,2.39055906]
[1736288160123,0.7404,3377.4,3376.7,2.39055906]
[1736288160614,0.29619,3377.0,3376.8,0.29621]
[1736288160821,0.29619,3377.1,3376.8,0.29621]
[1736288161124,0.29619,3377.1,3376.7,2.39055906]
[1736288161325,0.7404,3377.4,3376.7,2.39055906]
[1736288161623,0.29619,3377.0,3376.8,0.2962]
[1736288162022,0.29621,3376.9,3376.7,2.39055906]
[1736288162224,0.29621,3376.9,3376.7,2.68676906]
[1736288162523,4.5587,3377.2,3376.7,2.39055906]
[1736288162827,0.29616,3377.4,3377.0,2.39055906]
[1736288163024,3.2078,3377.5,3377.0,2.39055906]
[1736288163324,0.29619,3377.1,3376.7,2.39055906]
[1736288163821,3.2078,3377.5,3376.4,3.2078]
[1736288164025,0.2962,3376.9,3376.4,3.2078]
[1736288164227,5.0231,3377.0,3376.9,0.2962]
[1736288164425,5.0231,3377.0,3376.1,5.43818]
[1736288164426,0.7406,3376.5,3375.5,3.2078]
[1736288164624,0.29626,3376.2,3376.0,0.29628]
[1736288164827,3.2078,3376.3,3375.7,4.328]
[1736288165121,3.50406,3376.3,3376.1,0.29627]
[1736288165325,0.29626,3376.2,3376.0,0.29627]
[1736288165924,3.50405,3376.3,3376.1,0.29627]
[1736288166232,3.2078,3376.3,3375.7,4.328]
[1736288166421,3.2078,3376.3,3375.8,0.2963]
[1736288166725,3.2078,3376.3,3376.2,2.68681906]
[1736288166922,3.2078,3376.3,3375.7,4.328]
[1736288167115,0.29626,3376.2,3376.0,0.29627]
[1736288167522,3.2078,3376.3,3375.7,4.328]
[1736288167933,0.29627,3376.1,3375.9,0.29628]
[1736288168230,8.7007,3376.2,3375.6,4.5223]
[1736288168432,13.4134,3376.2,3375.6,4.5223]
[1736288168729,13.4134,3376.2,3375.3,2.39055906]
[1736288168934,0.29631,3375.7,3375.5,0.29632]
[1736288169125,13.4134,3376.2,3375.3,2.39055906]
[1736288169427,0.29629,3375.9,3375.6,0.29631]
[1736288169622,13.4134,3376.2,3375.3,2.39055906]
[1736288169818,0.2963,3375.8,3375.5,0.29632]
[1736288170021,13.4134,3376.2,3375.5,0.29632]
[1736288170222,0.2963,3375.8,3375.5,0.29632]
[1736288170424,0.29631,3375.6,3375.4,0.29633]
[1736288171025,0.2963,3375.8,3375.4,0.29633]
[1736288171219,0.2963,3375.8,3375.6,0.29631]
[1736288171425,0.2963,3375.8,3375.3,2.39055906]
[1736288171625,3.50409,3375.9,3375.4,0.29633]
[1736288171934,3.50409,3375.9,3375.7,0.2963]
[1736288172332,3.2078,3375.9,3375.3,2.39055906]
[1736288172631,3.2078,3375.9,3375.8,0.2963]
[1736288174027,3.2078,3375.9,3375.6,2.39055906]
[1736288174229,3.2078,3375.9,3375.3,2.39055906]
[1736288174731,3.2078,3375.9,3375.6,2.39055906]
[1736288174929,3.2078,3375.9,3375.8,0.2963]
[1736288175231,3.2078,3375.9,3375.3,2.39055906]
[1736288175434,0.29632,3375.6,3375.4,0.29633]
[1736288175834,0.29631,3375.7,3375.5,0.29632]
[1736288176027,4.5993,3375.8,3375.6,0.29631]
[1736288176423,4.303,3375.8,3375.3,2.39055906]
[1736288176632,4.5993,3375.8,3375.6,0.29631]
[1736288177035,0.29631,3375.7,3375.5,0.29632]
[1736288177230,4.303,3375.8,3375.3,2.39055906]
[1736288177436,0.29633,3375.4,3375.2,9.37454]
[1736288177633,4.303,3375.8,3375.1,3.2078]
[1736288177837,0.29635,3375.2,3375.0,0.29636]
[1736288178038,0.29634,3375.3,3374.9,0.29637]
[1736288178335,0.29636,3375.1,3374.9,0.29637]
[1736288178531,0.29636,3375.1,3374.8,4.7675]
[1736288178532,4.3058,3375.3,3375.1,0.29635]
[1736288178726,4.3058,3375.3,3374.8,4.7675]
[1736288178933,4.3058,3375.3,3374.6,4.398]
[1736288179133,0.29637,3375.0,3374.8,0.29638]
[1736288179532,0.29637,3375.0,3374.7,0.29639]
[1736288179734,8.9359,3375.3,3374.6,4.398]
[1736288179735,0.29635,3375.2,3374.6,4.398]
[1736288179936,3.2078,3375.4,3375.0,2.39055906]
[1736288180135,4.303,3375.8,3375.7,0.2963]
[1736288180640,4.303,3375.8,3375.4,4.3243]
[1736288180845,4.5993,3375.8,3375.6,0.29631]
[1736288181734,4.5993,3375.8,3375.4,4.3243]
[1736288181735,4.303,3375.8,3375.4,4.3243]
[1736288182041,7.6741,3376.1,3376.0,0.29628]
[1736288183941,7.6741,3376.1,3375.7,4.6145]
[1736288184142,7.97037,3376.1,3375.9,0.29628]
[1736288185140,7.6741,3376.1,3375.7,4.6145]
[1736288185438,7.97037,3376.1,3375.9,0.29629]
[1736288186539,7.97037,3376.1,3375.9,0.29628]
[1736288187040,7.6741,3376.1,3376.0,0.29628]
[1736288187240,7.6741,3376.1,3375.7,4.6145]
[1736288187439,7.97038,3376.1,3375.9,0.29628]
[1736288187642,0.29628,3376.0,3375.9,0.29628]
[1736288188241,7.6741,3376.1,3375.7,4.6145]
[1736288188540,7.97037,3376.1,3376.0,0.29628]
[1736288189042,7.6741,3376.1,3375.7,4.6145]
[1736288189245,0.29628,3376.0,3375.7,4.6145]
[1736288189433,0.29628,3376.0,3375.9,0.29629]
[1736288189637,7.6741,3376.1,3375.7,4.6145]
[1736288189840,7.97037,3376.1,3376.0,0.29628]
[1736288190044,7.6741,3376.1,3376.0,0.29628]
[1736288190659,3.2078,3376.1,3376.0,0.29628]
[1736288190940,7.7213,3376.8,3376.7,0.29622]
[1736288191141,3.39707584,3377.0,3376.9,0.2962]
[1736288191336,3.39707584,3377.0,3376.9,2.68675906]
[1736288191741,3.2078,3377.2,3376.9,2.39055906]
[1736288192044,3.2078,3377.2,3377.1,0.29618]
[1736288194742,3.2078,3377.8,3377.7,0.29613]
[1736288196142,4.6512,3377.9,3377.8,0.29612]
[1736288197050,4.6512,3377.9,3377.4,2.39055906]
[1736288197251,4.6512,3377.9,3377.8,0.29612]
[1736288197547,0.29613,3377.7,3377.2,9.1233]
[1736288197746,0.29613,3377.7,3377.4,0.29615]
[1736288198142,3.2078,3377.8,3377.4,0.29615]
[1736288198543,0.29616,3377.4,3376.9,0.2962]
[1736288198949,0.29616,3377.4,3377.1,0.29617]
[1736288199144,0.29617,3377.3,3377.1,0.29617]
[1736288199349,3.2078,3377.8,3377.1,0.29617]
[1736288199547,3.2078,3377.8,3377.4,2.39055906]
[1736288199752,4.6512,3377.9,3377.8,0.29612]
[1736288200239,3.39707584,3377.9,3377.8,0.29612]
[1736288200846,3.39707584,3377.9,3377.8,0.52398354]
[1736288201248,3.39707584,3377.9,3377.8,3.38477534]
[1736288201651,3.84127393,3378.8,3377.8,3.08865534]
[1736288201850,3.2078,3378.5,3377.6,9.4292]
[1736288202155,9.1055,3378.4,3378.3,0.29608]
[1736288202754,3.84127393,3378.8,3378.7,0.29604]
[1736288203049,12.3133,3378.9,3378.7,0.29604]
[1736288203557,12.3133,3378.9,3378.3,4.5896]
[1736288203756,12.3133,3378.9,3378.4,0.29606]
[1736288204054,12.3133,3378.9,3378.3,0.29607]
[1736288204055,3.50387,3378.5,3378.3,0.29607]
[1736288204256,3.50387,3378.5,3378.2,0.29608]
[1736288204550,12.3133,3378.9,3378.2,2.8607918]
[1736288204749,12.60933,3378.9,3378.6,0.29604]
[1736288204950,12.3133,3378.9,3378.2,2.8607918]
[1736288205157,12.3133,3378.9,3378.7,0.29603]
[1736288205464,12.60933,3378.9,3378.7,0.29603]
[1736288205649,12.60933,3378.9,3378.2,2.8607918]
[1736288205849,12.60933,3378.9,3378.8,0.29603]
[1736288208660,12.3133,3378.9,3378.8,0.29603]
[1736288209552,12.60932,3378.9,3378.8,0.29603]
[1736288209762,0.29606,3378.6,3378.5,0.29605]
[1736288209958,0.29605,3378.7,3378.6,0.29604]
[1736288210856,0.29606,3378.6,3378.5,0.29605]
[1736288211251,12.3133,3378.9,3378.3,0.74019]
[1736288211554,12.60933,3378.9,3378.8,0.29603]
[1736288212161,12.60933,3378.9,3378.6,0.29604]
[1736288212162,0.29605,3378.7,3378.6,0.29604]
[1736288212363,12.3133,3378.9,3378.3,0.29607]
[1736288212364,0.29607,3378.4,3378.3,0.29607]
[1736288214053,0.29608,3378.3,3378.2,0.29608]
[1736288214260,0.29607,3378.4,3378.0,4.679]
[1736288214565,0.29607,3378.4,3378.3,0.29608]
[1736288214760,0.29607,3378.4,3378.2,0.29608]
[1736288215972,13.05337,3378.9,3378.2,0.29608]
[1736288216162,0.29608,3378.3,3378.2,0.29608]
[1736288216460,0.7401,3378.8,3378.2,0.29608]
[1736288216666,0.29607,3378.4,3378.2,0.29608]
[1736288217167,0.29608,3378.3,3378.2,0.29608]
[1736288217369,0.29607,3378.4,3378.2,0.29608]
[1736288217560,0.29608,3378.3,3378.2,0.29608]
[1736288218158,0.29607,3378.4,3378.2,0.29608]
[1736288218559,13.05337,3378.9,3378.0,4.679]
[1736288218765,0.29604,3378.7,3378.6,0.29605]
[1736288219268,0.29604,3378.7,3378.2,2.8607918]
[1736288219469,0.29604,3378.7,3378.5,0.29605]
[1736288219667,12.3133,3378.9,3378.2,2.8607918]
[1736288219874,0.29605,3378.6,3378.2,2.8607918]
[1736288220170,0.29605,3378.6,3378.5,0.29606]
[1736288220874,0.29606,3378.5,3378.4,0.29606]
[1736288221071,12.3133,3378.9,3378.2,2.8607918]
[1736288221374,0.29606,3378.6,3378.5,0.29606]
[1736288221574,12.3133,3378.9,3378.1,2.39269897]
[1736288221872,0.29607,3378.5,3378.4,0.29606]
[1736288222871,0.29606,3378.6,3378.5,0.29606]
[1736288223769,0.29606,3378.6,3377.9,8.53767]
[1736288223770,0.29611,3378.0,3377.9,0.29611]
[1736288223970,0.74022,3378.2,3377.4,7.9264]
[1736288224273,0.29616,3377.4,3377.0,4.6533]
[1736288224575,11.988,3377.9,3377.4,0.29615]
[1736288224770,0.29616,3377.4,3377.3,0.29616]
[1736288225372,0.29613,3377.8,3377.7,0.29613]
[1736288225668,9.5205,3377.9,3377.3,2.68885897]
[1736288225874,0.29616,3377.4,3377.2,0.29617]
[1736288226875,0.29617,3377.3,3377.1,0.29618]
[1736288227174,0.2962,3376.9,3376.8,3.50401]
[1736288227368,0.29619,3377.1,3376.9,0.2962]
[1736288227983,5.04379,3377.1,3376.9,0.2962]
[1736288228776,4.7476,3377.1,3376.8,0.2962]
[1736288228979,4.7476,3377.1,3376.4,2.61961488]
[1736288228980,0.29622,3376.7,3376.5,0.29623]
[1736288229679,0.29621,3376.8,3376.3,7.95344]
[1736288229875,4.4137,3376.9,3376.3,3.2078]
[1736288230080,4.4137,3376.9,3375.8,2.39269897]
[1736288230081,3.2078,3376.7,3375.8,2.39269897]
[1736288230269,0.74057,3376.6,3375.8,2.39269897]
[1736288230581,3.2078,3376.7,3375.8,2.39269897]
[1736288230776,3.50402,3376.7,3376.4,0.29624]
[1736288230973,3.2078,3376.7,3376.5,0.29623]
[1736288231272,3.2078,3376.7,3376.4,2.39269897]
[1736288231478,3.50402,3376.7,3376.5,0.29623]
[1736288231679,3.2078,3376.7,3376.6,0.29623]
[1736288231880,3.2078,3376.7,3376.5,0.29623]
[1736288232176,3.50402,3376.7,3376.5,0.29623]
[1736288232376,3.2078,3376.7,3376.5,0.29623]
[1736288232575,3.2078,3376.7,3376.4,2.39269897]
[1736288232979,3.2078,3376.7,3376.6,0.29623]
[1736288233175,3.2078,3376.7,3376.4,2.39269897]
[1736288233370,3.39707584,3377.4,3377.3,0.29616]
[1736288233675,4.4156,3377.9,3377.3,2.39269897]
[1736288233876,0.29614,3377.6,3377.0,2.39269897]
[1736288234184,4.3311,3377.8,3377.0,2.39269897]
[1736288234372,4.7305,3377.7,3377.0,2.39269897]
[1736288234677,0.74035,3377.6,3376.7,2.39269897]
[1736288234885,0.29618,3377.1,3376.9,0.2962]
[1736288235077,3.2078,3377.2,3376.7,2.39269897]
[1736288235274,4.7723,3377.1,3376.9,0.29619]
[1736288235484,5.06848,3377.1,3376.9,0.29619]
[1736288235784,0.2962,3377.0,3376.7,0.29621]
[1736288235971,9.0953,3377.1,3376.5,9.2077]
[1736288236178,9.0953,3377.1,3376.8,0.2962]
[1736288236483,0.29619,3377.0,3376.8,0.29621]
[1736288236682,0.29619,3377.0,3376.5,9.2077]
[1736288236683,9.0953,3377.1,3376.6,0.29623]
[1736288236880,9.39148,3377.1,3376.9,0.29619]
[1736288237077,9.0953,3377.1,3376.5,9.2077]
[1736288237273,9.0953,3377.1,3377.0,0.29619]
[1736288237478,2.27601346,3377.1,3377.0,0.29619]
[1736288237678,2.27601346,3377.1,3377.0,2.68888897]
[1736288238578,2.57215346,3377.7,3377.0,2.39269897]
[1736288238781,2.27601346,3377.7,3377.1,4.3831]
[1736288238984,2.27601346,3377.7,3377.6,0.29614]
[1736288240381,6.99781346,3377.8,3377.3,2.39269897]
[1736288240585,0.29613,3377.7,3377.4,0.29615]
[1736288240783,0.29613,3377.7,3377.3,2.39269897]
[1736288241086,6.99781346,3377.8,3377.3,2.39269897]
[1736288241282,6.99781346,3377.8,3377.7,0.29613]
[1736288241483,2.27601346,3377.8,3377.7,0.29613]
[1736288241985,2.27601346,3377.9,3377.7,4.491]
[1736288242188,2.27601346,3377.9,3377.8,0.29612]
[1736288243284,2.27601346,3378.6,3377.8,0.29612]
[1736288243480,0.29606,3378.5,3378.3,0.29607]
[1736288243885,2.57207346,3378.6,3378.3,0.29607]
[1736288244276,2.27601346,3378.6,3378.3,0.29607]
[1736288244478,0.29606,3378.5,3378.3,0.29607]
[1736288245286,2.57206346,3378.6,3378.4,0.29606]
[1736288245679,2.57206346,3378.6,3378.3,0.29607]
[1736288246477,2.27601346,3378.6,3378.1,2.39269897]
[1736288246883,2.57206346,3378.6,3378.3,0.29607]
[1736288247083,2.27601346,3378.6,3378.1,2.39269897]
[1736288247483,2.57206346,3378.6,3378.4,0.29606]
[1736288247788,0.29605,3378.6,3378.4,0.29606]
[1736288248480,0.29606,3378.5,3378.3,0.29607]
[1736288248787,0.29605,3378.6,3378.4,0.29607]
[1736288250586,0.29605,3378.6,3378.5,0.29606]
[1736288250786,0.29605,3378.6,3378.1,2.39269897]
[1736288250987,0.29605,3378.6,3378.4,0.29606]
[1736288251193,11.42211346,3378.7,3378.1,2.39269897]
[1736288251382,0.29605,3378.6,3378.5,0.29606]
[1736288251687,11.42211346,3378.7,3378.6,0.29605]
[1736288252190,9.44214,3378.7,3378.6,0.29605]
[1736288252382,9.1461,3378.7,3378.2,0.7402]
[1736288252586,9.44215,3378.7,3378.6,0.29605]
[1736288253190,11.71816346,3378.7,3378.6,0.29605]
[1736288255593,11.42211346,3378.7,3378.6,0.29605]
[1736288255985,11.71815346,3378.7,3378.6,0.29605]
[1736288256489,11.42211346,3378.7,3378.6,0.29605]
[1736288258486,11.71815346,3378.7,3378.6,0.29605]
[1736288258889,9.44214,3378.7,3378.6,0.29605]
[1736288260488,2.27601346,3378.8,3378.4,2.39269897]
[1736288260790,2.27601346,3378.8,3378.7,2.68873897]
[1736288261787,1.87741764,3379.0,3378.7,2.39269897]
[1736288261983,1.87741764,3379.0,3378.9,0.29602]
[1736288262596,1.87741764,3379.0,3378.9,3.50382]
[1736288262789,3.41126632,3379.2,3379.1,0.29601]
[1736288262992,3.41126632,3379.2,3379.1,2.68870897]
[1736288263195,8.89324386,3379.6,3379.5,0.29597]
[1736288263196,3.2078,3379.6,3379.5,0.29597]
[1736288269801,3.2078,3379.6,3379.5,2.68866897]
[1736288271094,8.9156,3380.1,3380.0,0.29593]
[1736288271304,8.9156,3380.1,3380.0,2.68862897]
[1736288271800,4.3252,3380.1,3380.0,2.68862897]
[1736288273006,4.7061,3380.5,3380.0,2.68862897]
[1736288273203,4.7061,3380.5,3380.4,2.68858897]
[1736288273500,5.00198,3380.5,3380.4,2.68858897]
[1736288273701,4.7061,3380.5,3380.4,0.29589]
[1736288273904,0.29591,3380.2,3380.0,0.29592]
[1736288274497,3.2078,3380.3,3379.8,2.39269897]
[1736288274698,3.2078,3380.3,3380.2,0.29591]
[1736288274699,3.5037,3380.3,3380.2,0.29591]
[1736288275301,3.2078,3380.3,3380.2,0.29591]
[1736288275692,3.2078,3380.3,3379.8,2.39269897]
[1736288275895,3.2078,3379.9,3379.3,7.7414]
[1736288276200,13.6373,3379.8,3379.2,2.39269897]
[1736288276502,0.29598,3379.4,3379.2,0.29599]
[1736288276702,0.29598,3379.4,3379.3,0.29599]
[1736288277202,0.29599,3379.4,3378.9,2.39269897]
[1736288277597,0.29598,3379.5,3379.3,0.29598]
[1736288278002,13.6373,3379.8,3379.2,2.39269897]
[1736288278502,13.93325,3379.8,3379.6,0.29596]
[1736288278703,0.29595,3379.7,3379.6,0.29596]
[1736288278902,13.6373,3379.8,3379.2,2.39269897]
[1736288279402,0.29599,3379.3,3379.2,2.68868897]
[1736288279606,3.50378,3379.5,3379.3,0.29598]
[1736288280001,3.50378,3379.5,3379.4,0.29598]
[1736288280899,3.50378,3379.5,3379.3,0.29598]
[1736288281699,3.50378,3379.5,3379.2,2.39269897]
[1736288281700,3.2078,3379.5,3379.2,2.39269897]
[1736288281895,0.29599,3379.3,3379.2,2.68868897]
[1736288282301,0.29599,3379.3,3379.2,2.39269897]
[1736288283304,3.2078,3379.5,3379.2,2.39269897]
[1736288283606,3.50378,3379.5,3379.3,0.29599]
[1736288283799,0.29598,3379.4,3379.3,0.29599]
[1736288283996,0.29598,3379.4,3379.2,2.39269897]
[1736288284202,0.29598,3379.4,3379.2,2.68868897]
[1736288284603,3.2078,3379.5,3379.2,2.68868897]
[1736288284805,0.29599,3379.3,3379.2,2.68868897]
[1736288285106,0.29599,3379.4,3379.2,2.68868897]
[1736288286209,0.29599,3379.4,3379.3,0.29599]
[1736288286396,0.29598,3379.4,3379.2,2.39269897]
[1736288286708,0.29599,3379.4,3379.2,2.68868897]
[1736288286909,0.29599,3379.4,3379.3,0.29599]
[1736288287508,3.50378,3379.5,3379.4,0.29598]
[1736288288508,3.2078,3379.5,3379.2,2.39269897]
[1736288289011,3.2078,3379.5,3379.4,0.29598]
[1736288289507,13.6373,3379.8,3379.7,0.29595]
[1736288290002,0.29595,3379.7,3379.6,2.39269897]
[1736288290203,13.6373,3379.8,3379.6,2.39269897]
[1736288290603,13.6373,3379.8,3379.7,0.29595]
[1736288291006,3.2078,3379.9,3379.7,0.29595]
[1736288291209,3.2078,3379.9,3379.6,2.39269897]
[1736288291210,3.41126632,3380.0,3379.9,0.29594]
[1736288291506,3.41126632,3380.0,3379.9,2.68863897]
[1736288294107,6.61906632,3380.0,3379.6,2.39269897]
[1736288294308,0.29594,3379.9,3379.7,0.29595]
[1736288295114,0.29595,3379.8,3379.6,2.68865897]
[1736288295405,6.61906632,3380.0,3379.7,0.29595]
[1736288295714,0.29594,3379.9,3379.7,0.29595]
[1736288295907,0.29594,3379.8,3379.6,2.68865897]
[1736288296413,0.29594,3379.9,3379.6,2.68865897]
[1736288296708,0.29594,3379.9,3379.7,0.29595]
[1736288297515,0.29594,3379.8,3379.7,0.29595]
[1736288297705,0.29594,3379.9,3379.7,0.29595]
[1736288297908,6.61906632,3380.0,3379.6,2.39269897]
[1736288298109,0.29594,3379.9,3379.7,0.29595]
[1736288298914,0.29594,3379.9,3379.8,0.29594]
[1736288299712,0.29595,3379.8,3379.7,0.29595]
[1736288300214,0.73985,3379.9,3379.1,3.2078]
[1736288300514,0.29599,3379.3,3379.2,0.29599]
[1736288301208,4.4883,3379.5,3379.0,0.29601]
[1736288301402,3.41126632,3379.4,3379.3,0.29599]
[1736288301604,3.41126632,3379.4,3379.3,2.68868897]
[1736288302009,3.41126632,3379.4,3379.0,2.39269897]
[1736288302210,0.29601,3379.1,3378.7,6.82889897]
[1736288302406,4.6506,3379.3,3379.0,2.39269897]
[1736288302613,0.29601,3379.1,3379.0,2.39269897]
[1736288304320,0.29601,3379.1,3379.0,2.68870897]
[1736288304518,4.15136451,3379.1,3379.0,2.68870897]
[1736288305010,3.85535451,3379.1,3378.5,3.2078]
[1736288305313,0.29604,3378.8,3378.5,3.2078]
[1736288305516,0.29604,3378.8,3378.6,0.29604]
[1736288306108,4.3364,3379.0,3378.6,0.29604]
[1736288306313,0.29604,3378.7,3378.5,3.50386]
[1736288307713,0.29605,3378.6,3378.5,3.2078]
[1736288308723,0.29605,3378.6,3378.3,4.85507]
[1736288308724,0.29608,3378.2,3378.0,4.6267]
[1736288309016,0.29609,3378.1,3378.0,4.3306]
[1736288309323,4.5393,3378.5,3377.7,4.4864]
[1736288309324,3.2078,3378.3,3377.7,4.78252]
[1736288309614,4.6311,3378.0,3377.8,0.29612]
[1736288309918,4.6311,3378.0,3377.8,2.39269897]
[1736288310114,4.6311,3378.0,3377.9,0.29611]
[1736288311421,4.6311,3378.0,3377.7,4.4864]
[1736288311617,4.92721,3378.0,3377.7,4.78252]
[1736288312321,0.29611,3377.9,3377.7,4.78252]
[1736288312716,4.6311,3378.0,3377.5,2.39269897]
[1736288312922,0.29612,3377.8,3377.6,0.29613]
[1736288313318,4.6311,3378.0,3377.5,2.39269897]
[1736288313514,4.6311,3378.0,3377.4,4.3306]
[1736288313515,3.2078,3377.9,3377.4,4.3306]
[1736288313720,4.3377,3377.8,3377.4,4.3306]
[1736288313918,0.29613,3377.7,3377.4,4.62675]
[1736288314119,0.29614,3377.6,3377.4,4.62675]
[1736288315016,4.3377,3377.8,3377.2,2.39269897]
[1736288315222,4.3377,3377.8,3377.1,0.29618]
[1736288315223,0.29617,3377.3,3377.1,0.29618]
[1736288316716,4.5912,3377.7,3377.0,7.5546]
[1736288316923,0.29615,3377.5,3377.1,0.29618]
[1736288317225,4.5912,3377.7,3377.2,2.39269897]
[1736288317615,0.29615,3377.5,3377.3,0.29616]
[1736288318031,4.5912,3377.7,3377.2,2.39269897]
[1736288318229,4.5912,3377.7,3377.2,2.68886897]
[1736288318431,0.29616,3377.3,3377.1,0.29618]
[1736288318627,0.29616,3377.4,3377.1,0.29618]
[1736288318925,0.29616,3377.4,3377.2,0.29617]
[1736288319131,3.2078,3377.5,3377.0,3.2078]
[1736288319325,0.29618,3377.1,3377.0,3.2078]
[1736288319628,4.5344,3377.3,3377.0,3.50399]
[1736288319629,0.29618,3377.2,3377.0,3.50399]
[1736288319926,0.29617,3377.2,3377.0,3.50399]
[1736288320120,4.5344,3377.3,3377.0,3.2078]
[1736288320321,4.5344,3377.3,3377.0,3.50399]
[1736288320524,4.83057,3377.3,3377.0,3.50399]
[1736288320727,0.29617,3377.2,3377.0,3.50399]
[1736288320926,0.29617,3377.2,3377.1,0.29618]
[1736288321125,4.83057,3377.3,3377.1,0.29618]
[1736288321326,4.5344,3377.3,3377.0,3.50399]
[1736288321527,4.5344,3377.3,3377.0,3.2078]
[1736288321730,0.29618,3377.1,3377.0,3.2078]
[1736288322028,0.29618,3377.2,3377.0,3.50399]
[1736288322626,0.29618,3377.2,3377.1,0.29618]
[1736288323030,0.29618,3377.2,3377.0,3.2078]
[1736288323228,4.5344,3377.3,3377.0,3.50398]
[1736288323629,0.29618,3377.1,3377.0,3.50398]
[1736288324027,0.29618,3377.2,3377.1,0.29618]
[1736288324228,0.29618,3377.2,3377.0,3.2078]
[1736288324527,0.29618,3377.1,3377.0,3.50398]
[1736288324728,0.29618,3377.2,3377.1,0.29618]
[1736288324925,3.50395,3377.5,3377.4,0.29616]
[1736288325129,3.2078,3377.5,3377.4,2.68885897]
[1736288326421,3.2078,3377.5,3377.4,0.29616]
[1736288326825,3.50395,3377.5,3377.3,0.29616]
[1736288327031,3.50395,3377.5,3377.4,0.29616]
[1736288328427,3.2078,3377.5,3377.4,0.29616]
[1736288329838,3.2078,3377.9,3377.1,6.97339897]
[1736288330035,3.2078,3377.9,3377.4,2.39269897]
[1736288330333,0.29612,3377.8,3377.7,0.29612]
[1736288330534,3.2078,3377.9,3377.8,0.29612]
[1736288331436,3.2078,3377.9,3377.5,4.3503]
[1736288331638,0.29616,3377.4,3377.3,0.29616]
[1736288331832,0.29618,3377.2,3377.1,0.29618]
[1736288332336,0.29618,3377.2,3376.9,4.3503]
[1736288332630,9.25047,3377.3,3377.1,0.29618]
[1736288332831,9.25047,3377.3,3376.9,4.3503]
[1736288333135,9.25047,3377.3,3377.2,0.29617]
[1736288334935,9.25047,3377.3,3377.1,0.29617]
[1736288335133,9.25047,3377.3,3376.9,4.3503]
[1736288335938,0.29618,3377.2,3377.0,0.29619]
[1736288336138,0.29618,3377.2,3376.9,4.3503]
[1736288336338,0.29618,3377.2,3377.0,0.29619]
[1736288336637,0.29618,3377.2,3377.1,0.29618]
[1736288336837,0.29617,3377.2,3377.0,0.29619]
[1736288337132,0.29617,3377.2,3376.6,3.94836]
[1736288337133,8.9543,3377.3,3376.6,3.2078]
[1736288337429,0.2962,3376.9,3376.7,0.29621]
[1736288339033,8.9543,3377.3,3376.6,3.2078]
[1736288339431,0.29618,3377.1,3376.9,0.29619]
[1736288340140,0.29618,3377.1,3376.6,3.2078]
[1736288340433,2.06133,3377.7,3376.6,3.2078]
[1736288340434,6.63895258,3377.8,3376.8,4.78539794]
[1736288340737,6.63895258,3377.8,3377.7,0.29613]
[1736288341239,6.63895258,3377.8,3377.7,9.35723]
[1736288341435,3.43115258,3377.8,3377.7,9.35723]
[1736288341736,3.2078,3378.2,3378.1,0.29609]
[1736288341941,4.587,3378.4,3378.3,0.29608]
[1736288342535,4.3627,3378.5,3378.4,0.29607]
[1736288343237,4.3627,3378.5,3378.1,2.39269897]
[1736288343541,4.3627,3378.5,3378.4,0.29607]
[1736288345338,4.65876,3378.5,3378.4,0.29607]
[1736288345539,4.3627,3378.5,3378.4,0.29607]
[1736288345937,0.29607,3378.4,3378.3,0.29607]
[1736288346638,3.50387,3378.4,3378.3,0.29607]
[1736288347139,3.2078,3378.4,3377.8,5.60049897]
[1736288347536,3.2078,3378.4,3377.7,9.0611]
[1736288347537,0.29612,3377.8,3377.7,4.6915]
[1736288347738,0.74029,3377.9,3377.3,0.29616]
[1736288347935,8.8736,3377.7,3377.6,0.29614]
[1736288348337,0.29616,3377.4,3377.3,0.29616]
[1736288348644,0.29616,3377.4,3377.1,4.5563]
[1736288348835,0.29617,3377.3,3377.2,0.29617]
[1736288349342,3.2078,3377.6,3377.1,4.5563]
[1736288349637,0.29619,3377.0,3376.8,0.2962]
[1736288349841,3.2078,3377.2,3376.6,2.39269897]
[1736288350033,0.29619,3377.0,3376.8,0.2962]
[1736288350441,4.5443,3377.1,3376.6,2.39269897]
[1736288350639,0.29619,3377.0,3376.8,0.2962]
[1736288350938,4.5443,3377.1,3376.8,0.29621]
[1736288351144,0.29619,3377.0,3376.8,0.29621]
[1736288351340,6.63895258,3377.2,3376.9,2.39269897]
[1736288351537,3.43115258,3377.2,3377.1,0.29618]
[1736288351845,4.54835509,3377.4,3377.2,0.29617]